[Event "Titled Tuesday Blitz April 4 Late 2023"]
[White "Durarbayli, Vasif"]
[Black "Mazurkiewicz, Michal"]
[WhiteFideId "13402935"]
[BlackFideId "1124943"]
[WhiteElo "2551"]
[BlackElo "2054"]
[Result "1-0"]
[Round "01"]
[TimeControl "180+2"]
[Date "2023.04.04"]
[WhiteClock "0:02:15"]
[BlackClock "0:01:35"]

1. e4 {[%clk 0:02:58]}  Nf6 {[%clk 0:02:58]} 2. e5 {[%clk 0:02:58]}  Nd5 {[%clk 0:02:59]} 3. d4 {[%clk 0:02:58]}  d6 {[%clk 0:02:59]} 4. c4 {[%clk 0:02:59]}  Nb6 {[%clk 0:02:59]} 5. exd6 {[%clk 0:03:00]}  exd6 {[%clk 0:02:58]} 6. Nc3 {[%clk 0:03:00]}  Be7 {[%clk 0:02:58]} 7. Bd3 {[%clk 0:03:00]}  O-O {[%clk 0:02:56]} 8. Nge2 {[%clk 0:03:01]}  d5 {[%clk 0:02:48]} 9. c5 {[%clk 0:03:00]}  N6d7 {[%clk 0:02:48]} 10. Nxd5 {[%clk 0:02:59]}  c6 {[%clk 0:02:15]} 11. Nxe7+ {[%clk 0:02:55]}  Qxe7 {[%clk 0:02:16]} 12. Bf4 {[%clk 0:02:55]}  Re8 {[%clk 0:02:15]} 13. Qc2 {[%clk 0:02:54]}  Nf8 {[%clk 0:02:13]} 14. Bd6 {[%clk 0:02:53]}  Qh4 {[%clk 0:02:13]} 15. O-O {[%clk 0:02:48]}  Bg4 {[%clk 0:02:05]} 16. Ng3 {[%clk 0:02:46]}  Nbd7 {[%clk 0:02:02]} 17. h3 {[%clk 0:02:41]}  Be6 {[%clk 0:02:00]} 18. Rae1 {[%clk 0:02:40]}  Nf6 {[%clk 0:01:57]} 19. Ne4 {[%clk 0:02:15]}  Nxe4 {[%clk 0:01:44]} 20. Rxe4 {[%clk 0:02:16]}  Qg4 {[%clk 0:01:35]} 21. hxg4 {[%clk 0:02:15]} 1-0


[Site "https://www.chess.com"]

[Event "Titled Tuesday Blitz April 4 Late 2023"]
[White "Jovic, Stanoje"]
[Black "Makarian, Rudik"]
[WhiteFideId "905020"]
[BlackFideId "44105681"]
[WhiteElo "2236"]
[BlackElo "2430"]
[Result "0-1"]
[Round "01"]
[TimeControl "180+2"]
[Date "2023.04.04"]
[WhiteClock "0:00:04"]
[BlackClock "0:00:05"]

1. c4 {[%clk 0:03:00]}  e6 {[%clk 0:02:58]} 2. g3 {[%clk 0:03:00]}  d5 {[%clk 0:02:54]} 3. Bg2 {[%clk 0:03:01]}  Nf6 {[%clk 0:02:54]} 4. Nf3 {[%clk 0:03:01]}  dxc4 {[%clk 0:02:53]} 5. O-O {[%clk 0:03:00]}  a6 {[%clk 0:02:51]} 6. a4 {[%clk 0:03:00]}  Nc6 {[%clk 0:02:51]} 7. a5 {[%clk 0:02:59]}  Bd6 {[%clk 0:02:42]} 8. Qc2 {[%clk 0:02:57]}  O-O {[%clk 0:02:39]} 9. Qxc4 {[%clk 0:02:56]}  e5 {[%clk 0:02:40]} 10. d3 {[%clk 0:02:51]}  h6 {[%clk 0:02:38]} 11. Nc3 {[%clk 0:02:45]}  Be6 {[%clk 0:02:30]} 12. Qa4 {[%clk 0:02:45]}  Re8 {[%clk 0:02:21]} 13. Bd2 {[%clk 0:02:44]}  Qd7 {[%clk 0:02:18]} 14. Rfc1 {[%clk 0:02:40]}  Bh3 {[%clk 0:02:17]} 15. Ne4 {[%clk 0:02:33]}  Nxe4 {[%clk 0:02:14]} 16. dxe4 {[%clk 0:02:33]}  Be6 {[%clk 0:02:00]} 17. Be3 {[%clk 0:02:25]}  Na7 {[%clk 0:01:51]} 18. Qxd7 {[%clk 0:02:22]}  Bxd7 {[%clk 0:01:52]} 19. Nd2 {[%clk 0:02:18]}  Nb5 {[%clk 0:01:48]} 20. Nc4 {[%clk 0:02:15]}  Be6 {[%clk 0:01:49]} 21. b3 {[%clk 0:02:05]}  f6 {[%clk 0:01:46]} 22. f4 {[%clk 0:01:59]}  Rad8 {[%clk 0:01:33]} 23. Kf2 {[%clk 0:01:54]}  Bf7 {[%clk 0:01:30]} 24. f5 {[%clk 0:01:46]}  Rd7 {[%clk 0:01:27]} 25. h4 {[%clk 0:01:44]}  Red8 {[%clk 0:01:27]} 26. g4 {[%clk 0:01:44]}  Bb4 {[%clk 0:00:57]} 27. g5 {[%clk 0:01:38]}  Nc3 {[%clk 0:00:37]} 28. gxh6 {[%clk 0:01:23]}  Bxc4 {[%clk 0:00:34]} 29. bxc4 {[%clk 0:01:22]}  Nd1+ {[%clk 0:00:35]} 30. Rxd1 {[%clk 0:01:19]}  Rxd1 {[%clk 0:00:34]} 31. Ra4 {[%clk 0:01:04]}  Be1+ {[%clk 0:00:34]} 32. Kf3 {[%clk 0:01:01]}  Bxh4 {[%clk 0:00:35]} 33. hxg7 {[%clk 0:01:00]}  Rb1 {[%clk 0:00:29]} 34. Kg4 {[%clk 0:00:36]}  Be1 {[%clk 0:00:29]} 35. Kh5 {[%clk 0:00:31]}  Kxg7 {[%clk 0:00:27]} 36. Bf3 {[%clk 0:00:23]}  Bd2 {[%clk 0:00:24]} 37. Bc5 {[%clk 0:00:19]}  Bc3 {[%clk 0:00:19]} 38. Kg4 {[%clk 0:00:17]}  Bd4 {[%clk 0:00:19]} 39. Bxd4 {[%clk 0:00:14]}  Rxd4 {[%clk 0:00:19]} 40. Kg3 {[%clk 0:00:15]}  c5 {[%clk 0:00:18]} 41. Kf2 {[%clk 0:00:12]}  Rb4 {[%clk 0:00:17]} 42. Ra1 {[%clk 0:00:11]}  Rbxc4 {[%clk 0:00:17]} 43. Rg1+ {[%clk 0:00:11]}  Kf7 {[%clk 0:00:16]} 44. Rh1 {[%clk 0:00:12]}  Rb4 {[%clk 0:00:07]} 45. Rh7+ {[%clk 0:00:12]}  Kg8 {[%clk 0:00:06]} 46. Rc7 {[%clk 0:00:11]}  Rd6 {[%clk 0:00:06]} 47. Rxc5 {[%clk 0:00:10]}  Rc6 {[%clk 0:00:06]} 48. Rd5 {[%clk 0:00:10]}  Rb5 {[%clk 0:00:06]} 49. Rd8+ {[%clk 0:00:09]}  Kf7 {[%clk 0:00:06]} 50. Rd7+ {[%clk 0:00:09]}  Ke8 {[%clk 0:00:07]} 51. Rh7 {[%clk 0:00:09]}  Kd8 {[%clk 0:00:07]} 52. Kg3 {[%clk 0:00:09]}  Kc8 {[%clk 0:00:05]} 53. Bh5 {[%clk 0:00:07]}  Rxa5 {[%clk 0:00:05]} 54. Bf7 {[%clk 0:00:08]}  Rac5 {[%clk 0:00:03]} 55. Be6+ {[%clk 0:00:07]}  Kb8 {[%clk 0:00:03]} 56. Rf7 {[%clk 0:00:06]}  a5 {[%clk 0:00:03]} 57. Rxf6 {[%clk 0:00:06]}  a4 {[%clk 0:00:04]} 58. Rf8+ {[%clk 0:00:06]}  Ka7 {[%clk 0:00:04]} 59. Rh8 {[%clk 0:00:06]}  a3 {[%clk 0:00:04]} 60. Rh1 {[%clk 0:00:06]}  Ra5 {[%clk 0:00:03]} 61. Ra1 {[%clk 0:00:06]}  b5 {[%clk 0:00:02]} 62. Bd5 {[%clk 0:00:05]}  Rf6 {[%clk 0:00:01]} 63. Kg4 {[%clk 0:00:05]}  b4 {[%clk 0:00:02]} 64. Kg5 {[%clk 0:00:06]}  Raa6 {[%clk 0:00:03]} 65. Be6 {[%clk 0:00:05]}  Rfxe6 {[%clk 0:00:03]} 66. fxe6 {[%clk 0:00:05]}  Rxe6 {[%clk 0:00:04]} 67. Kf5 {[%clk 0:00:05]}  Ra6 {[%clk 0:00:04]} 68. Kxe5 {[%clk 0:00:04]}  b3 {[%clk 0:00:05]} 0-1


[Site "https://www.chess.com"]

[Event "Titled Tuesday Blitz April 4 Late 2023"]
[White "Babazada, Khazar"]
[Black "Sztokbant, Bernardo Vainzoff"]
[WhiteFideId "13413554"]
[BlackFideId "2115956"]
[WhiteElo "2351"]
[BlackElo "2222"]
[Result "1-0"]
[Round "01"]
[TimeControl "180+2"]
[Date "2023.04.04"]
[WhiteClock "0:01:33"]
[BlackClock "0:00:51"]

1. Nf3 {[%clk 0:02:58]}  g6 {[%clk 0:02:59]} 2. e4 {[%clk 0:02:56]}  Bg7 {[%clk 0:02:59]} 3. d4 {[%clk 0:02:56]}  d6 {[%clk 0:02:59]} 4. Nc3 {[%clk 0:02:56]}  Nf6 {[%clk 0:03:00]} 5. Bc4 {[%clk 0:02:56]}  O-O {[%clk 0:03:00]} 6. Qe2 {[%clk 0:02:56]}  Nc6 {[%clk 0:03:00]} 7. h3 {[%clk 0:02:56]}  Nd7 {[%clk 0:02:59]} 8. Be3 {[%clk 0:02:55]}  a6 {[%clk 0:02:57]} 9. a3 {[%clk 0:02:47]}  b5 {[%clk 0:02:55]} 10. Ba2 {[%clk 0:02:47]}  Bb7 {[%clk 0:02:55]} 11. h4 {[%clk 0:02:27]}  e5 {[%clk 0:02:55]} 12. dxe5 {[%clk 0:02:23]}  Ncxe5 {[%clk 0:02:52]} 13. h5 {[%clk 0:02:23]}  Nxf3+ {[%clk 0:02:52]} 14. Qxf3 {[%clk 0:02:23]}  Ne5 {[%clk 0:02:52]} 15. Qh3 {[%clk 0:02:14]}  Bc8 {[%clk 0:02:51]} 16. Qg3 {[%clk 0:02:00]}  Be6 {[%clk 0:02:34]} 17. hxg6 {[%clk 0:01:42]}  hxg6 {[%clk 0:02:14]} 18. Qh2 {[%clk 0:01:39]}  Re8 {[%clk 0:02:09]} 19. Qh7+ {[%clk 0:01:36]}  Kf8 {[%clk 0:02:09]} 20. Bxe6 {[%clk 0:01:37]}  Rxe6 {[%clk 0:02:00]} 21. O-O-O {[%clk 0:01:36]}  Qf6 {[%clk 0:01:49]} 22. Nd5 {[%clk 0:01:35]}  Qd8 {[%clk 0:01:47]} 23. Bh6 {[%clk 0:01:35]}  Bxh6+ {[%clk 0:01:45]} 24. Qxh6+ {[%clk 0:01:34]}  Ke8 {[%clk 0:01:45]} 25. f4 {[%clk 0:01:34]}  Ng4 {[%clk 0:01:09]} 26. Qg7 {[%clk 0:01:35]}  Rxe4 {[%clk 0:00:51]} 27. Rh8+ {[%clk 0:01:33]} 1-0


[Site "https://www.chess.com"]

[Event "Titled Tuesday Blitz April 4 Late 2023"]
[White "Li, Ruifeng"]
[Black "Prydun, Andriy"]
[WhiteFideId "2061074"]
[BlackFideId "14145898"]
[WhiteElo "2441"]
[BlackElo "2164"]
[Result "1-0"]
[Round "01"]
[TimeControl "180+2"]
[Date "2023.04.04"]
[WhiteClock "0:01:55"]
[BlackClock "0:02:49"]

1. b3 {[%clk 0:03:00]}  Nf6 {[%clk 0:02:59]} 2. Bb2 {[%clk 0:03:01]}  d6 {[%clk 0:02:59]} 3. e3 {[%clk 0:02:59]}  g6 {[%clk 0:02:58]} 4. Bxf6 {[%clk 0:02:59]}  exf6 {[%clk 0:02:59]} 5. d4 {[%clk 0:02:59]}  d5 {[%clk 0:03:00]} 6. c4 {[%clk 0:02:59]}  dxc4 {[%clk 0:02:58]} 7. Bxc4 {[%clk 0:02:56]}  Bd6 {[%clk 0:02:58]} 8. Nf3 {[%clk 0:02:55]}  O-O {[%clk 0:02:58]} 9. O-O {[%clk 0:02:55]}  Bg4 {[%clk 0:02:57]} 10. h3 {[%clk 0:02:54]}  Bd7 {[%clk 0:02:56]} 11. Nc3 {[%clk 0:02:54]}  Nc6 {[%clk 0:02:56]} 12. Rc1 {[%clk 0:02:49]}  Re8 {[%clk 0:02:53]} 13. Nb5 {[%clk 0:02:24]}  Bf8 {[%clk 0:02:53]} 14. Re1 {[%clk 0:01:59]}  a6 {[%clk 0:02:52]} 15. Nc3 {[%clk 0:02:00]}  Ba3 {[%clk 0:02:52]} 16. Rc2 {[%clk 0:01:59]}  Bb4 {[%clk 0:02:52]} 17. Qc1 {[%clk 0:01:58]}  Qe7 {[%clk 0:02:51]} 18. Rd1 {[%clk 0:01:56]}  Qf8 {[%clk 0:02:49]} 19. Nd5 {[%clk 0:01:55]}  Bd6 {[%clk 0:02:49]} 20. Nxf6+ {[%clk 0:01:55]} 1-0


[Site "https://www.chess.com"]

[Event "Titled Tuesday Blitz April 4 Late 2023"]
[White "Melkumyan, Hrant"]
[Black "liwadas82"]
[WhiteFideId "13302485"]
[WhiteElo "2604"]
[BlackElo "2463"]
[Result "1-0"]
[Round "01"]
[TimeControl "180+2"]
[Date "2023.04.04"]
[WhiteClock "0:01:00"]
[BlackClock "0:00:02"]

1. e4 {[%clk 0:02:58]}  e5 {[%clk 0:02:59]} 2. Nf3 {[%clk 0:02:58]}  Nc6 {[%clk 0:02:58]} 3. Bb5 {[%clk 0:02:58]}  a6 {[%clk 0:02:58]} 4. Ba4 {[%clk 0:02:58]}  Nf6 {[%clk 0:02:58]} 5. O-O {[%clk 0:02:55]}  b5 {[%clk 0:02:58]} 6. Bb3 {[%clk 0:02:55]}  Bb7 {[%clk 0:02:59]} 7. Nc3 {[%clk 0:02:49]}  Bc5 {[%clk 0:02:51]} 8. a4 {[%clk 0:02:43]}  b4 {[%clk 0:02:49]} 9. Nd5 {[%clk 0:02:43]}  O-O {[%clk 0:02:39]} 10. d3 {[%clk 0:02:39]}  h6 {[%clk 0:02:38]} 11. Nd2 {[%clk 0:02:32]}  Nd4 {[%clk 0:02:25]} 12. Nxf6+ {[%clk 0:02:32]}  Qxf6 {[%clk 0:02:24]} 13. Bd5 {[%clk 0:02:29]}  c6 {[%clk 0:02:13]} 14. Ba2 {[%clk 0:02:28]}  d5 {[%clk 0:02:13]} 15. c3 {[%clk 0:02:15]}  bxc3 {[%clk 0:02:09]} 16. bxc3 {[%clk 0:02:16]}  Ne6 {[%clk 0:02:10]} 17. Rb1 {[%clk 0:02:16]}  Rab8 {[%clk 0:02:08]} 18. Qf3 {[%clk 0:02:06]}  Nf4 {[%clk 0:02:04]} 19. Nb3 {[%clk 0:01:54]}  Ba7 {[%clk 0:01:57]} 20. Ba3 {[%clk 0:01:46]}  Rfd8 {[%clk 0:01:53]} 21. Bc5 {[%clk 0:01:45]}  Bxc5 {[%clk 0:01:33]} 22. Nxc5 {[%clk 0:01:46]}  Qe7 {[%clk 0:01:33]} 23. d4 {[%clk 0:01:40]}  Ne6 {[%clk 0:01:02]} 24. Nxe6 {[%clk 0:01:33]}  Qxe6 {[%clk 0:01:00]} 25. exd5 {[%clk 0:01:25]}  cxd5 {[%clk 0:00:58]} 26. Rfe1 {[%clk 0:01:25]}  e4 {[%clk 0:00:54]} 27. Qf4 {[%clk 0:01:26]}  g5 {[%clk 0:00:44]} 28. Qg3 {[%clk 0:01:24]}  Qc6 {[%clk 0:00:39]} 29. h4 {[%clk 0:01:22]}  f6 {[%clk 0:00:38]} 30. hxg5 {[%clk 0:01:18]}  hxg5 {[%clk 0:00:36]} 31. Rxe4 {[%clk 0:01:19]}  Qxa4 {[%clk 0:00:33]} 32. Re2 {[%clk 0:01:14]}  Re8 {[%clk 0:00:19]} 33. Reb2 {[%clk 0:01:07]}  Rbc8 {[%clk 0:00:10]} 34. Rxb7 {[%clk 0:01:02]}  Qxa2 {[%clk 0:00:10]} 35. Qh3 {[%clk 0:01:02]}  Qc2 {[%clk 0:00:03]} 36. Qh6 {[%clk 0:01:02]}  Re7 {[%clk 0:00:02]} 37. Rxe7 {[%clk 0:00:59]}  Qxb1+ {[%clk 0:00:02]} 38. Kh2 {[%clk 0:01:00]} 1-0


[Site "https://www.chess.com"]

[Event "Titled Tuesday Blitz April 4 Late 2023"]
[White "Santos Flores, Alberto"]
[Black "Svane, Frederik"]
[WhiteFideId "3601234"]
[BlackFideId "12923044"]
[WhiteElo "2235"]
[BlackElo "2502"]
[Result "0-1"]
[Round "01"]
[TimeControl "180+2"]
[Date "2023.04.04"]
[WhiteClock "0:00:12"]
[BlackClock "0:00:51"]

1. d4 {[%clk 0:02:58]}  Nf6 {[%clk 0:02:58]} 2. Bf4 {[%clk 0:02:58]}  b6 {[%clk 0:02:56]} 3. e3 {[%clk 0:02:56]}  Bb7 {[%clk 0:02:57]} 4. Nf3 {[%clk 0:02:56]}  Nh5 {[%clk 0:02:57]} 5. c3 {[%clk 0:02:46]}  d6 {[%clk 0:02:52]} 6. Nbd2 {[%clk 0:02:45]}  Nd7 {[%clk 0:02:50]} 7. Bd3 {[%clk 0:02:42]}  g6 {[%clk 0:02:36]} 8. Qe2 {[%clk 0:02:31]}  Bg7 {[%clk 0:02:35]} 9. Bg5 {[%clk 0:02:26]}  h6 {[%clk 0:02:35]} 10. Bh4 {[%clk 0:02:27]}  g5 {[%clk 0:02:35]} 11. Bg3 {[%clk 0:02:27]}  e6 {[%clk 0:02:34]} 12. e4 {[%clk 0:02:24]}  Qe7 {[%clk 0:02:33]} 13. Ba6 {[%clk 0:02:21]}  Bxa6 {[%clk 0:02:31]} 14. Qxa6 {[%clk 0:02:22]}  O-O {[%clk 0:02:31]} 15. O-O {[%clk 0:02:16]}  f5 {[%clk 0:02:20]} 16. h3 {[%clk 0:01:58]}  f4 {[%clk 0:02:18]} 17. Bh2 {[%clk 0:01:58]}  e5 {[%clk 0:02:19]} 18. dxe5 {[%clk 0:01:53]}  dxe5 {[%clk 0:02:11]} 19. Qc4+ {[%clk 0:01:51]}  Kh8 {[%clk 0:02:10]} 20. Qxc7 {[%clk 0:01:44]}  Nhf6 {[%clk 0:02:11]} 21. Rad1 {[%clk 0:01:42]}  Rfc8 {[%clk 0:02:09]} 22. Qb7 {[%clk 0:01:42]}  Rcb8 {[%clk 0:02:09]} 23. Qc6 {[%clk 0:01:37]}  Rc8 {[%clk 0:02:09]} 24. Qb5 {[%clk 0:01:26]}  Qe6 {[%clk 0:02:08]} 25. Qb3 {[%clk 0:01:24]}  Qe8 {[%clk 0:02:06]} 26. Qc2 {[%clk 0:01:22]}  g4 {[%clk 0:02:04]} 27. hxg4 {[%clk 0:01:22]}  Nxg4 {[%clk 0:02:04]} 28. Nb3 {[%clk 0:01:16]}  Ndf6 {[%clk 0:02:03]} 29. Rd2 {[%clk 0:01:10]}  Qa4 {[%clk 0:02:00]} 30. Nbd4 {[%clk 0:00:55]}  Qxc2 {[%clk 0:01:59]} 31. Nxc2 {[%clk 0:00:55]}  Nxe4 {[%clk 0:02:00]} 32. Re2 {[%clk 0:00:54]}  Nc5 {[%clk 0:02:00]} 33. Nh4 {[%clk 0:00:47]}  Kh7 {[%clk 0:01:46]} 34. f3 {[%clk 0:00:46]}  Nxh2 {[%clk 0:01:47]} 35. Kxh2 {[%clk 0:00:45]}  Rd8 {[%clk 0:01:47]} 36. Nb4 {[%clk 0:00:39]}  Bf6 {[%clk 0:01:45]} 37. g3 {[%clk 0:00:18]}  fxg3+ {[%clk 0:01:46]} 38. Kxg3 {[%clk 0:00:18]}  Rg8+ {[%clk 0:01:46]} 39. Kh3 {[%clk 0:00:19]}  Ne6 {[%clk 0:01:47]} 40. Ng2 {[%clk 0:00:17]}  Rg5 {[%clk 0:01:43]} 41. f4 {[%clk 0:00:16]}  Rh5+ {[%clk 0:01:33]} 42. Kg3 {[%clk 0:00:15]}  Rg8+ {[%clk 0:01:32]} 43. Kf3 {[%clk 0:00:14]}  Rh3+ {[%clk 0:01:27]} 44. Ke4 {[%clk 0:00:14]}  Rh2 {[%clk 0:01:22]} 45. Kf5 {[%clk 0:00:13]}  Rgxg2 {[%clk 0:01:03]} 46. Rxg2 {[%clk 0:00:14]}  Rxg2 {[%clk 0:01:04]} 47. Kxe6 {[%clk 0:00:13]}  Bg7 {[%clk 0:01:00]} 48. fxe5 {[%clk 0:00:13]}  Rxb2 {[%clk 0:01:01]} 49. Kf7 {[%clk 0:00:12]}  Bxe5 {[%clk 0:01:00]} 50. Nc6 {[%clk 0:00:12]}  Bxc3 {[%clk 0:00:59]} 51. Ne7 {[%clk 0:00:12]}  Rxa2 {[%clk 0:00:56]} 52. Ng8 {[%clk 0:00:12]}  Rg2 {[%clk 0:00:53]} 53. Nf6+ {[%clk 0:00:12]}  Bxf6 {[%clk 0:00:52]} 54. Rxf6 {[%clk 0:00:13]}  Rg7+ {[%clk 0:00:52]} 55. Ke6 {[%clk 0:00:13]}  b5 {[%clk 0:00:52]} 56. Ke5 {[%clk 0:00:13]}  b4 {[%clk 0:00:51]} 57. Kd4 {[%clk 0:00:12]}  Rb7 {[%clk 0:00:51]} 0-1


[Site "https://www.chess.com"]

[Event "Titled Tuesday Blitz April 4 Late 2023"]
[White "Somalianwarrior2006"]
[Black "Silva, Pedro Gil Ferreira Da"]
[BlackFideId "1946102"]
[WhiteElo "2860"]
[BlackElo "2255"]
[Result "1-0"]
[Round "01"]
[TimeControl "180+2"]
[Date "2023.04.04"]
[WhiteClock "0:00:08"]
[BlackClock "0:01:17"]

1. e4 {[%clk 0:03:00]}  c5 {[%clk 0:02:58]} 2. Nf3 {[%clk 0:03:00]}  e6 {[%clk 0:02:58]} 3. d4 {[%clk 0:03:00]}  cxd4 {[%clk 0:02:58]} 4. Nxd4 {[%clk 0:03:01]}  a6 {[%clk 0:02:59]} 5. Nc3 {[%clk 0:03:00]}  Qc7 {[%clk 0:02:59]} 6. g3 {[%clk 0:03:00]}  Nf6 {[%clk 0:02:57]} 7. Bg2 {[%clk 0:03:01]}  Nc6 {[%clk 0:02:56]} 8. O-O {[%clk 0:02:58]}  d6 {[%clk 0:02:56]} 9. a4 {[%clk 0:02:56]}  Be7 {[%clk 0:02:55]} 10. Re1 {[%clk 0:02:55]}  Bd7 {[%clk 0:02:55]} 11. Nb3 {[%clk 0:02:53]}  O-O {[%clk 0:02:55]} 12. a5 {[%clk 0:02:53]}  Ne5 {[%clk 0:02:53]} 13. Nd4 {[%clk 0:02:42]}  Rfc8 {[%clk 0:02:53]} 14. h3 {[%clk 0:02:39]}  h6 {[%clk 0:02:44]} 15. g4 {[%clk 0:02:38]}  Nc4 {[%clk 0:02:41]} 16. Nb3 {[%clk 0:02:34]}  Bc6 {[%clk 0:02:40]} 17. Qd4 {[%clk 0:02:27]}  Be8 {[%clk 0:02:37]} 18. Qd3 {[%clk 0:01:48]}  Nd7 {[%clk 0:02:35]} 19. f4 {[%clk 0:01:34]}  Bf6 {[%clk 0:02:35]} 20. Rd1 {[%clk 0:00:57]}  Nf8 {[%clk 0:02:33]} 21. Bf1 {[%clk 0:00:52]}  Bb5 {[%clk 0:02:26]} 22. Nxb5 {[%clk 0:00:51]}  axb5 {[%clk 0:02:27]} 23. c3 {[%clk 0:00:51]}  Ng6 {[%clk 0:02:22]} 24. Qe2 {[%clk 0:00:36]}  e5 {[%clk 0:02:21]} 25. f5 {[%clk 0:00:36]}  Nf4 {[%clk 0:02:21]} 26. Bxf4 {[%clk 0:00:35]}  exf4 {[%clk 0:02:22]} 27. Nd4 {[%clk 0:00:35]}  Qc5 {[%clk 0:02:20]} 28. b4 {[%clk 0:00:32]}  Qe5 {[%clk 0:02:15]} 29. Rac1 {[%clk 0:00:27]}  Bg5 {[%clk 0:02:13]} 30. Nf3 {[%clk 0:00:26]}  Qf6 {[%clk 0:02:13]} 31. Rd5 {[%clk 0:00:24]}  Ne3 {[%clk 0:02:06]} 32. Rxb5 {[%clk 0:00:23]}  Rxc3 {[%clk 0:02:06]} 33. e5 {[%clk 0:00:22]}  dxe5 {[%clk 0:02:01]} 34. Rxc3 {[%clk 0:00:22]}  e4 {[%clk 0:02:01]} 35. Rbc5 {[%clk 0:00:21]}  exf3 {[%clk 0:01:59]} 36. Qxf3 {[%clk 0:00:21]}  Kh7 {[%clk 0:01:58]} 37. Qxb7 {[%clk 0:00:20]}  Rd8 {[%clk 0:01:57]} 38. Rc1 {[%clk 0:00:17]}  Qd4 {[%clk 0:01:57]} 39. Kh1 {[%clk 0:00:15]}  Qd2 {[%clk 0:01:47]} 40. Qf3 {[%clk 0:00:13]}  Qxb4 {[%clk 0:01:33]} 41. a6 {[%clk 0:00:13]}  Qa3 {[%clk 0:01:31]} 42. Rc7 {[%clk 0:00:11]}  Rd2 {[%clk 0:01:30]} 43. a7 {[%clk 0:00:09]}  Ra2 {[%clk 0:01:27]} 44. a8=Q {[%clk 0:00:09]}  Qxa8 {[%clk 0:01:27]} 45. Qxa8 {[%clk 0:00:10]}  Rxa8 {[%clk 0:01:27]} 46. Rxf7 {[%clk 0:00:10]}  Ra2 {[%clk 0:01:25]} 47. Bd3 {[%clk 0:00:10]}  Bf6 {[%clk 0:01:24]} 48. Rf8 {[%clk 0:00:07]}  h5 {[%clk 0:01:19]} 49. Rcc8 {[%clk 0:00:07]}  Kh6 {[%clk 0:01:18]} 50. Rh8+ {[%clk 0:00:07]}  Kg5 {[%clk 0:01:17]} 51. Rxh5# {[%clk 0:00:08]} 1-0


[Site "https://www.chess.com"]

[Event "Titled Tuesday Blitz April 4 Late 2023"]
[White "Saya, Ethan"]
[Black "Vakhlamov, Igor L."]
[WhiteFideId "26095181"]
[BlackFideId "24126748"]
[WhiteElo "2189"]
[BlackElo "2400"]
[Result "0-1"]
[Round "01"]
[TimeControl "180+2"]
[Date "2023.04.04"]
[WhiteClock "0:00:09"]
[BlackClock "0:01:20"]

1. d4 {[%clk 0:02:59]}  d5 {[%clk 0:02:59]} 2. c4 {[%clk 0:02:59]}  e6 {[%clk 0:03:00]} 3. Nc3 {[%clk 0:02:57]}  c5 {[%clk 0:03:01]} 4. cxd5 {[%clk 0:02:56]}  cxd4 {[%clk 0:03:01]} 5. Qxd4 {[%clk 0:02:51]}  Nc6 {[%clk 0:03:01]} 6. Qc4 {[%clk 0:02:04]}  exd5 {[%clk 0:02:56]} 7. Qxd5 {[%clk 0:02:03]}  Bd6 {[%clk 0:02:56]} 8. Bg5 {[%clk 0:01:44]}  Nge7 {[%clk 0:02:56]} 9. Bxe7 {[%clk 0:01:43]}  Qxe7 {[%clk 0:02:57]} 10. O-O-O {[%clk 0:01:42]}  Be5 {[%clk 0:02:49]} 11. Qb3 {[%clk 0:01:16]}  O-O {[%clk 0:02:41]} 12. Nf3 {[%clk 0:01:16]}  Be6 {[%clk 0:02:38]} 13. Qa4 {[%clk 0:01:11]}  Bxc3 {[%clk 0:02:32]} 14. bxc3 {[%clk 0:01:10]}  Qc5 {[%clk 0:02:31]} 15. Qc2 {[%clk 0:00:59]}  Rac8 {[%clk 0:02:26]} 16. e3 {[%clk 0:00:47]}  Nb4 {[%clk 0:02:26]} 17. Qb2 {[%clk 0:00:22]}  Nxa2+ {[%clk 0:02:25]} 18. Kd2 {[%clk 0:00:23]}  Nxc3 {[%clk 0:02:22]} 19. Bd3 {[%clk 0:00:20]}  Nxd1 {[%clk 0:02:18]} 20. Rxd1 {[%clk 0:00:21]}  Rfd8 {[%clk 0:02:18]} 21. Nd4 {[%clk 0:00:21]}  Bd5 {[%clk 0:01:48]} 22. Ke2 {[%clk 0:00:19]}  g6 {[%clk 0:01:45]} 23. f3 {[%clk 0:00:13]}  a5 {[%clk 0:01:45]} 24. Kf2 {[%clk 0:00:13]}  a4 {[%clk 0:01:44]} 25. Ra1 {[%clk 0:00:09]}  Qc3 {[%clk 0:01:32]} 26. Qxc3 {[%clk 0:00:08]}  Rxc3 {[%clk 0:01:32]} 27. Be2 {[%clk 0:00:04]}  Ra8 {[%clk 0:01:22]} 28. Nb5 {[%clk 0:00:02]}  Rc2 {[%clk 0:01:22]} 29. Ke1 {[%clk 0:00:02]}  Rxe2+ {[%clk 0:01:20]} 30. Kxe2 {[%clk 0:00:02]}  Bc4+ {[%clk 0:01:21]} 31. Kd2 {[%clk 0:00:03]}  Bxb5 {[%clk 0:01:21]} 32. Kc3 {[%clk 0:00:04]}  Bc6 {[%clk 0:01:20]} 33. Kb4 {[%clk 0:00:05]}  Rd8 {[%clk 0:01:19]} 34. Ka5 {[%clk 0:00:03]}  Rd2 {[%clk 0:01:19]} 35. h3 {[%clk 0:00:03]}  Rxg2 {[%clk 0:01:20]} 36. h4 {[%clk 0:00:03]}  Bxf3 {[%clk 0:01:20]} 37. Kb6 {[%clk 0:00:04]}  Bc6 {[%clk 0:01:20]} 38. h5 {[%clk 0:00:05]}  gxh5 {[%clk 0:01:20]} 39. Rd1 {[%clk 0:00:05]}  a3 {[%clk 0:01:19]} 40. Rd8+ {[%clk 0:00:05]}  Kg7 {[%clk 0:01:20]} 41. Rd1 {[%clk 0:00:06]}  a2 {[%clk 0:01:20]} 42. Ra1 {[%clk 0:00:07]}  h4 {[%clk 0:01:21]} 43. Kc7 {[%clk 0:00:08]}  h3 {[%clk 0:01:21]} 44. Kd8 {[%clk 0:00:08]}  h2 {[%clk 0:01:21]} 45. Ke7 {[%clk 0:00:09]}  Re2 {[%clk 0:01:20]} 46. Rh1 {[%clk 0:00:09]}  Bxh1 {[%clk 0:01:20]} 47. Kd6 {[%clk 0:00:09]}  a1=Q {[%clk 0:01:20]} 0-1


[Site "https://www.chess.com"]